[Event "Late-Titled-Tuesday-Blitz-March-05-2024"]
[Site "Chess.com"]
[Date "2024.03.05"]
[Round "1"]
[White "PepeCuenca"]
[Black "Grindaveci"]
[Result "0-1"]
[WhiteElo "2710"]
[BlackElo "2444"]
[TimeControl "180+1"]
[EndTime "14:07:04 PST"]
[Termination "Grindaveci won on time"]

1. d4 {[%clk 0:03:00.9]} 1... d5 {[%clk 0:03:00]} 2. Bf4 {[%clk 0:03:01]} 2...
c5 {[%clk 0:03:00.1]} 3. e3 {[%clk 0:02:59.2]} 3... Nc6 {[%clk 0:03:00.7]} 4.
Nf3 {[%clk 0:02:56.6]} 4... Nf6 {[%clk 0:03:00.1]} 5. Nbd2 {[%clk 0:02:52.5]}
5... Qb6 {[%clk 0:02:59.4]} 6. dxc5 {[%clk 0:02:51.3]} 6... Qxb2 {[%clk
0:03:00]} 7. Rb1 {[%clk 0:02:48.3]} 7... Qc3 {[%clk 0:03:00.6]} 8. Bb5 {[%clk
0:02:47.9]} 8... g6 {[%clk 0:02:58.3]} 9. O-O {[%clk 0:02:24.8]} 9... Bg7 {[%clk
0:02:56.8]} 10. Nb3 {[%clk 0:02:04.7]} 10... a6 {[%clk 0:02:34.1]} 11. Be5
{[%clk 0:01:51.3]} 11... Qb4 {[%clk 0:02:32.8]} 12. Bxc6+ {[%clk 0:01:48.4]}
12... bxc6 {[%clk 0:02:32.9]} 13. Nfd4 {[%clk 0:01:31.4]} 13... Bd7 {[%clk
0:02:28.8]} 14. Qd2 {[%clk 0:01:17]} 14... Qc4 {[%clk 0:02:21.4]} 15. Qd3 {[%clk
0:01:00.7]} 15... Qa4 {[%clk 0:02:08.3]} 16. Qc3 {[%clk 0:00:52.7]} 16... Ne4
{[%clk 0:01:59.5]} 17. Bxg7 {[%clk 0:00:30.7]} 17... Nxc3 {[%clk 0:01:59.3]} 18.
Bxh8 {[%clk 0:00:31.3]} 18... Nxb1 {[%clk 0:01:58.3]} 19. Rxb1 {[%clk
0:00:31.9]} 19... f6 {[%clk 0:01:52.3]} 20. Bg7 {[%clk 0:00:31.9]} 20... Kf7
{[%clk 0:01:51.5]} 21. Bh6 {[%clk 0:00:32.2]} 21... e5 {[%clk 0:01:50]} 22. Nf3
{[%clk 0:00:32.1]} 22... Qxa2 {[%clk 0:01:49.2]} 23. Nbd2 {[%clk 0:00:24.9]}
23... Qxc2 {[%clk 0:01:45.5]} 24. h4 {[%clk 0:00:20.9]} 24... e4 {[%clk
0:01:43.6]} 25. Rb7 {[%clk 0:00:14.5]} 25... Ke8 {[%clk 0:01:33.8]} 26. Bg7
{[%clk 0:00:08.3]} 26... exf3 {[%clk 0:01:32.2]} 27. Nxf3 {[%clk 0:00:09.2]}
27... Bg4 {[%clk 0:01:26]} 28. Nd4 {[%clk 0:00:08.3]} 28... Qc1+ {[%clk
0:01:17.1]} 29. Kh2 {[%clk 0:00:07.3]} 29... Qxc5 {[%clk 0:01:17.6]} 30. f3
{[%clk 0:00:03.1]} 30... Bd7 {[%clk 0:01:13.6]} 31. Kg1 {[%clk 0:00:03.1]} 31...
Qd6 {[%clk 0:01:12.4]} 32. Bh6 {[%clk 0:00:03.1]} 32... c5 {[%clk 0:01:09.9]}
33. Bf4 {[%clk 0:00:02.6]} 33... Qe7 {[%clk 0:01:05.1]} 34. Nb3 {[%clk
0:00:03.1]} 34... Rc8 {[%clk 0:01:02.9]} 35. Kh2 {[%clk 0:00:01.9]} 35... c4
{[%clk 0:01:02.8]} 36. Nd4 {[%clk 0:00:02.3]} 36... c3 {[%clk 0:01:03.4]} 37.
Nc2 {[%clk 0:00:02.6]} 37... Qe6 {[%clk 0:00:57.1]} 38. Rb1 {[%clk 0:00:02.4]}
38... Qf5 {[%clk 0:00:56.2]} 39. Rc1 {[%clk 0:00:02.7]} 39... Qd3 {[%clk
0:00:56]} 40. Nd4 {[%clk 0:00:03]} 40... c2 {[%clk 0:00:54.5]} 41. Kg3 {[%clk
0:00:03.6]} 41... Qd2 {[%clk 0:00:54]} 42. Nb3 {[%clk 0:00:04.1]} 42... Qc3
{[%clk 0:00:53.2]} 43. Nd4 {[%clk 0:00:04.5]} 43... Qb2 {[%clk 0:00:53.3]} 44.
Ne2 {[%clk 0:00:03.8]} 44... Bb5 {[%clk 0:00:52.7]} 0-1

[Event "Late-Titled-Tuesday-Blitz-March-05-2024"]
[Site "Chess.com"]
[Date "2024.03.05"]
[Round "1"]
[White "Igor_Lysyj"]
[Black "MusicCityMaster"]
[Result "1-0"]
[WhiteElo "2823"]
[BlackElo "2488"]
[TimeControl "180+1"]
[EndTime "14:07:06 PST"]
[Termination "Igor_Lysyj won by resignation"]

1. d4 {[%clk 0:03:00]} 1... Nf6 {[%clk 0:02:59.6]} 2. c4 {[%clk 0:02:59.8]} 2...
c5 {[%clk 0:02:58.8]} 3. d5 {[%clk 0:02:57.1]} 3... b5 {[%clk 0:02:59.1]} 4.
cxb5 {[%clk 0:02:56.9]} 4... a6 {[%clk 0:02:59.9]} 5. bxa6 {[%clk 0:02:57]} 5...
g6 {[%clk 0:03:00.5]} 6. Nc3 {[%clk 0:02:56]} 6... Bg7 {[%clk 0:03:01]} 7. e4
{[%clk 0:02:53]} 7... O-O {[%clk 0:03:00.3]} 8. a7 {[%clk 0:02:52.8]} 8... Rxa7
{[%clk 0:03:00.8]} 9. Nf3 {[%clk 0:02:52]} 9... e6 {[%clk 0:02:59.8]} 10. Be2
{[%clk 0:02:51.4]} 10... exd5 {[%clk 0:02:59]} 11. exd5 {[%clk 0:02:51.6]} 11...
d6 {[%clk 0:02:57.3]} 12. O-O {[%clk 0:02:51.6]} 12... Na6 {[%clk 0:02:56.2]}
13. Re1 {[%clk 0:02:47.3]} 13... Nc7 {[%clk 0:02:52.3]} 14. Bg5 {[%clk
0:02:41.5]} 14... h6 {[%clk 0:02:37.2]} 15. Bxf6 {[%clk 0:02:41.1]} 15... Bxf6
{[%clk 0:02:35.2]} 16. Qd2 {[%clk 0:02:40.6]} 16... Bg7 {[%clk 0:02:33.5]} 17.
h3 {[%clk 0:02:35.1]} 17... Rb7 {[%clk 0:02:23.1]} 18. Bc4 {[%clk 0:02:31.7]}
18... Rb4 {[%clk 0:02:18.1]} 19. b3 {[%clk 0:02:29]} 19... Ba6 {[%clk
0:01:56.1]} 20. Bxa6 {[%clk 0:02:27.4]} 20... Nxa6 {[%clk 0:01:55.8]} 21. Rac1
{[%clk 0:02:24]} 21... Nc7 {[%clk 0:01:50]} 22. Ne4 {[%clk 0:02:19.4]} 22... f5
{[%clk 0:01:37.7]} 23. Ng3 {[%clk 0:02:18.5]} 23... Qa8 {[%clk 0:01:35.1]} 24.
Rcd1 {[%clk 0:02:05.5]} 24... Nb5 {[%clk 0:01:17.5]} 25. Ne2 {[%clk 0:02:00.4]}
25... Nd4 {[%clk 0:01:11.2]} 26. Nfxd4 {[%clk 0:01:53.3]} 26... Rxd4 {[%clk
0:01:02.7]} 27. Nxd4 {[%clk 0:01:52.4]} 27... cxd4 {[%clk 0:01:02.9]} 28. Re6
{[%clk 0:01:50.1]} 28... Qxd5 {[%clk 0:01:02.5]} 29. Rxg6 {[%clk 0:01:50]} 29...
Kh7 {[%clk 0:01:02.8]} 30. Rxg7+ {[%clk 0:01:48.5]} 30... Kxg7 {[%clk
0:01:02.2]} 31. Qxd4+ {[%clk 0:01:48.7]} 31... Qxd4 {[%clk 0:01:02.7]} 32. Rxd4
{[%clk 0:01:48.9]} 32... Ra8 {[%clk 0:01:02.8]} 33. a4 {[%clk 0:01:46.5]} 33...
Ra6 {[%clk 0:00:58]} 34. Rd5 {[%clk 0:01:46.5]} 34... Kf6 {[%clk 0:00:57.4]} 35.
a5 {[%clk 0:01:41]} 35... Ke6 {[%clk 0:00:55.9]} 36. Rb5 {[%clk 0:01:41]} 36...
Rc6 {[%clk 0:00:54.6]} 37. Kh2 {[%clk 0:01:32.3]} 37... Rc1 {[%clk 0:00:53.8]}
38. a6 {[%clk 0:01:28]} 38... Ra1 {[%clk 0:00:53.7]} 39. Rb6 {[%clk 0:01:28.1]}
39... Kd5 {[%clk 0:00:52.9]} 40. b4 {[%clk 0:01:27.7]} 40... f4 {[%clk
0:00:53.2]} 41. b5 {[%clk 0:01:25.8]} 41... Kc5 {[%clk 0:00:53.5]} 42. Rb7
{[%clk 0:01:25.3]} 42... d5 {[%clk 0:00:52.7]} 43. a7 {[%clk 0:01:25.2]} 43...
d4 {[%clk 0:00:51.4]} 44. b6 {[%clk 0:01:15.8]} 44... d3 {[%clk 0:00:50.4]} 45.
Rb8 {[%clk 0:00:55.7]} 45... d2 {[%clk 0:00:48.2]} 46. a8=Q {[%clk 0:00:44.5]}
46... Rxa8 {[%clk 0:00:46.3]} 47. Rxa8 {[%clk 0:00:44.7]} 47... d1=Q {[%clk
0:00:46.6]} 48. b7 {[%clk 0:00:45.2]} 48... Qe2 {[%clk 0:00:24.3]} 49. b8=Q
{[%clk 0:00:43.5]} 49... Qxf2 {[%clk 0:00:24.7]} 50. Qa7+ {[%clk 0:00:43.2]} 1-0

[Event "Late-Titled-Tuesday-Blitz-March-05-2024"]
[Site "Chess.com"]
[Date "2024.03.05"]
[Round "1"]
[White "s-dshubin"]
[Black "jinbojinbo"]
[Result "0-1"]
[WhiteElo "2328"]
[BlackElo "2634"]
[TimeControl "180+1"]
[EndTime "14:07:07 PST"]
[Termination "jinbojinbo won on time"]

1. e4 {[%clk 0:03:00.9]} 1... e5 {[%clk 0:02:57.5]} 2. Nf3 {[%clk 0:02:59.1]}
2... Nc6 {[%clk 0:02:56.7]} 3. Bc4 {[%clk 0:02:59.7]} 3... Bc5 {[%clk
0:02:54.8]} 4. c3 {[%clk 0:02:59.5]} 4... Nf6 {[%clk 0:02:53.2]} 5. d4 {[%clk
0:03:00.4]} 5... exd4 {[%clk 0:02:52.5]} 6. cxd4 {[%clk 0:03:01.3]} 6... Bb4+
{[%clk 0:02:51.7]} 7. Bd2 {[%clk 0:03:01.5]} 7... Nxe4 {[%clk 0:02:38.3]} 8.
Bxb4 {[%clk 0:03:00.6]} 8... Nxb4 {[%clk 0:02:39.2]} 9. Bxf7+ {[%clk 0:03:01.3]}
9... Kxf7 {[%clk 0:02:30.4]} 10. Qb3+ {[%clk 0:03:00.2]} 10... d5 {[%clk
0:02:29.2]} 11. Ne5+ {[%clk 0:03:00.2]} 11... Ke8 {[%clk 0:02:21.8]} 12. Qxb4
{[%clk 0:03:01.1]} 12... Qd6 {[%clk 0:02:11.3]} 13. Qxd6 {[%clk 0:02:40]} 13...
Nxd6 {[%clk 0:02:02.5]} 14. Nf3 {[%clk 0:02:40.9]} 14... c6 {[%clk 0:02:00.3]}
15. O-O {[%clk 0:02:39.7]} 15... Kd8 {[%clk 0:01:58.4]} 16. Nc3 {[%clk
0:02:38.3]} 16... Bf5 {[%clk 0:01:57.5]} 17. Rfe1 {[%clk 0:02:35.7]} 17... Re8
{[%clk 0:01:56.4]} 18. Rxe8+ {[%clk 0:02:22.3]} 18... Kxe8 {[%clk 0:01:57.3]}
19. Re1+ {[%clk 0:02:22.5]} 19... Kf8 {[%clk 0:01:55.2]} 20. Ne5 {[%clk
0:02:10.9]} 20... Re8 {[%clk 0:01:52.9]} 21. Re3 {[%clk 0:01:56.4]} 21... Bc8
{[%clk 0:01:48.3]} 22. b3 {[%clk 0:01:16.1]} 22... Nf5 {[%clk 0:01:45.6]} 23.
Rd3 {[%clk 0:00:57.1]} 23... Nxd4 {[%clk 0:01:44]} 24. f4 {[%clk 0:00:31.8]}
24... Ne6 {[%clk 0:01:41.3]} 25. g3 {[%clk 0:00:30.8]} 25... Nc5 {[%clk
0:01:30.3]} 26. Rd4 {[%clk 0:00:28.6]} 26... a5 {[%clk 0:01:28.9]} 27. Na4
{[%clk 0:00:21.3]} 27... Ne4 {[%clk 0:01:17.4]} 28. Nb6 {[%clk 0:00:19.9]} 28...
Be6 {[%clk 0:01:16.1]} 29. Ra4 {[%clk 0:00:12.7]} 29... Rd8 {[%clk 0:01:14.8]}
30. Rxa5 {[%clk 0:00:10.8]} 30... d4 {[%clk 0:01:14.6]} 31. Kf1 {[%clk
0:00:09.1]} 31... d3 {[%clk 0:01:12.9]} 32. Ra8 {[%clk 0:00:08.6]} 32... Rxa8
{[%clk 0:01:08.8]} 33. Nxa8 {[%clk 0:00:09.5]} 33... Ke7 {[%clk 0:00:39.3]} 34.
Nxd3 {[%clk 0:00:07]} 34... Nc3 {[%clk 0:00:35.7]} 35. Nc7 {[%clk 0:00:04.1]}
35... Bh3+ {[%clk 0:00:32.4]} 36. Kf2 {[%clk 0:00:03.8]} 36... Nxa2 {[%clk
0:00:27.3]} 0-1

[Event "Late-Titled-Tuesday-Blitz-March-05-2024"]
[Site "Chess.com"]
[Date "2024.03.05"]
[Round "1"]
[White "chegueps"]
[Black "Tugrik1969"]
[Result "1/2-1/2"]
[WhiteElo "2661"]
[BlackElo "2395"]
[TimeControl "180+1"]
[EndTime "14:07:09 PST"]
[Termination "Game drawn by repetition"]

1. Nf3 {[%clk 0:02:58.5]} 1... c5 {[%clk 0:02:54.3]} 2. e3 {[%clk 0:02:54.5]}
2... Nf6 {[%clk 0:02:50.4]} 3. d4 {[%clk 0:02:53.3]} 3... d5 {[%clk 0:02:50.2]}
4. Be2 {[%clk 0:02:52.1]} 4... e6 {[%clk 0:02:46.9]} 5. O-O {[%clk 0:02:51.3]}
5... Nc6 {[%clk 0:02:45.8]} 6. a3 {[%clk 0:02:49.1]} 6... a6 {[%clk 0:02:24.8]}
7. Nbd2 {[%clk 0:02:47.7]} 7... c4 {[%clk 0:02:20.2]} 8. b3 {[%clk 0:02:41.5]}
8... b5 {[%clk 0:02:18.3]} 9. Bb2 {[%clk 0:02:26]} 9... Bb7 {[%clk 0:02:17.6]}
10. a4 {[%clk 0:02:23.5]} 10... Bb4 {[%clk 0:02:12.2]} 11. c3 {[%clk 0:02:23.1]}
11... Be7 {[%clk 0:02:08.3]} 12. axb5 {[%clk 0:02:22]} 12... axb5 {[%clk
0:02:08.1]} 13. Qc2 {[%clk 0:02:20.8]} 13... Qc7 {[%clk 0:02:00.1]} 14. Rxa8+
{[%clk 0:02:16.8]} 14... Bxa8 {[%clk 0:02:00.3]} 15. Ra1 {[%clk 0:02:17.5]}
15... O-O {[%clk 0:02:00.4]} 16. Ba3 {[%clk 0:02:09.7]} 16... Bb7 {[%clk
0:01:56.9]} 17. Bxe7 {[%clk 0:02:07.6]} 17... Qxe7 {[%clk 0:01:57.8]} 18. Qb2
{[%clk 0:01:58.6]} 18... Ra8 {[%clk 0:01:53.6]} 19. Rxa8+ {[%clk 0:01:56.2]}
19... Bxa8 {[%clk 0:01:54.5]} 20. b4 {[%clk 0:01:43.6]} 20... h6 {[%clk
0:01:40.3]} 21. h3 {[%clk 0:01:43.3]} 21... Nd7 {[%clk 0:01:35.3]} 22. Qa3
{[%clk 0:01:39.1]} 22... Bb7 {[%clk 0:01:32.4]} 23. Bd1 {[%clk 0:01:23.4]} 23...
e5 {[%clk 0:01:30.3]} 24. dxe5 {[%clk 0:01:20.4]} 24... Ndxe5 {[%clk 0:01:28.8]}
25. Bc2 {[%clk 0:01:17.5]} 25... g6 {[%clk 0:01:20.6]} 26. Kf1 {[%clk
0:01:10.8]} 26... Kg7 {[%clk 0:01:19.2]} 27. Nxe5 {[%clk 0:01:03.1]} 27... Qxe5
{[%clk 0:01:15.8]} 28. Nf3 {[%clk 0:01:02.9]} 28... Qf6 {[%clk 0:01:13.9]} 29.
Bd1 {[%clk 0:00:45.3]} 29... Bc8 {[%clk 0:01:04]} 30. Qa8 {[%clk 0:00:42.5]}
30... Bf5 {[%clk 0:00:57.9]} 31. Nd4 {[%clk 0:00:36.3]} 31... Nxd4 {[%clk
0:00:47.6]} 32. exd4 {[%clk 0:00:37.2]} 32... Bd3+ {[%clk 0:00:47.4]} 33. Kg1
{[%clk 0:00:35.1]} 33... Qf4 {[%clk 0:00:41]} 34. Bf3 {[%clk 0:00:21.3]} 34...
Qc1+ {[%clk 0:00:37.1]} 35. Kh2 {[%clk 0:00:21.4]} 35... Qf4+ {[%clk 0:00:30.1]}
36. Kg1 {[%clk 0:00:20.6]} 36... Qc1+ {[%clk 0:00:30]} 37. Kh2 {[%clk
0:00:20.9]} 37... Qf4+ {[%clk 0:00:30.2]} 38. Kg1 {[%clk 0:00:02.4]} 1/2-1/2

[Event "Late-Titled-Tuesday-Blitz-March-05-2024"]
[Site "Chess.com"]
[Date "2024.03.05"]
[Round "1"]
[White "ahmedkandiliii"]
[Black "akanga001"]
[Result "1-0"]
[WhiteElo "2542"]
[BlackElo "2027"]
[TimeControl "180+1"]
[EndTime "14:07:10 PST"]
[Termination "ahmedkandiliii won on time"]

1. c4 {[%clk 0:02:58.4]} 1... e6 {[%clk 0:02:47]} 2. g3 {[%clk 0:02:55.3]} 2...
d5 {[%clk 0:02:46.3]} 3. Bg2 {[%clk 0:02:50.1]} 3... Nf6 {[%clk 0:02:45.9]} 4.
Nf3 {[%clk 0:02:36.9]} 4... dxc4 {[%clk 0:02:44.4]} 5. O-O {[%clk 0:02:34.8]}
5... c6 {[%clk 0:02:43.7]} 6. Qc2 {[%clk 0:02:33.3]} 6... b5 {[%clk 0:02:42.7]}
7. b3 {[%clk 0:02:31]} 7... cxb3 {[%clk 0:02:41.3]} 8. axb3 {[%clk 0:02:31.9]}
8... Bb7 {[%clk 0:02:41.1]} 9. Ne5 {[%clk 0:02:30.8]} 9... Bd6 {[%clk
0:02:38.6]} 10. Nxc6 {[%clk 0:02:27.9]} 10... Qc8 {[%clk 0:02:25.7]} 11. Nd4
{[%clk 0:02:26.2]} 11... Qxc2 {[%clk 0:02:21.6]} 12. Nxc2 {[%clk 0:02:27.1]}
12... Bxg2 {[%clk 0:02:20.9]} 13. Kxg2 {[%clk 0:02:28]} 13... Nc6 {[%clk
0:02:13.4]} 14. Nc3 {[%clk 0:02:27.5]} 14... Rb8 {[%clk 0:02:10.4]} 15. Bb2
{[%clk 0:02:24.4]} 15... O-O {[%clk 0:02:08.6]} 16. Ne3 {[%clk 0:02:13]} 16...
b4 {[%clk 0:02:07.2]} 17. Nb1 {[%clk 0:02:08.1]} 17... Ne4 {[%clk 0:01:50.6]}
18. d3 {[%clk 0:02:06.4]} 18... Nc5 {[%clk 0:01:49.8]} 19. Nd2 {[%clk
0:02:05.6]} 19... a5 {[%clk 0:01:37.7]} 20. Rfc1 {[%clk 0:02:01.5]} 20... Rfc8
{[%clk 0:01:35.8]} 21. Nec4 {[%clk 0:01:58.4]} 21... Be7 {[%clk 0:01:24.6]} 22.
Nxa5 {[%clk 0:01:56.9]} 22... Nxa5 {[%clk 0:01:18.2]} 23. Rxa5 {[%clk
0:01:57.8]} 23... Ra8 {[%clk 0:01:11]} 24. Rca1 {[%clk 0:01:52.8]} 24... Rab8
{[%clk 0:01:05.9]} 25. Ra7 {[%clk 0:01:50.4]} 25... Bf8 {[%clk 0:01:05.1]} 26.
Be5 {[%clk 0:01:41.2]} 26... Rb6 {[%clk 0:00:58.4]} 27. Ra8 {[%clk 0:01:36.7]}
27... Rbc6 {[%clk 0:00:57.5]} 28. d4 {[%clk 0:01:23.3]} 28... Nd7 {[%clk
0:00:55.3]} 29. Nc4 {[%clk 0:01:21]} 29... f6 {[%clk 0:00:49.7]} 30. Bf4 {[%clk
0:01:17.3]} 30... Kf7 {[%clk 0:00:40.5]} 31. R8a7 {[%clk 0:01:15.7]} 31... Ke8
{[%clk 0:00:37.1]} 32. Rb7 {[%clk 0:01:16.3]} 32... g5 {[%clk 0:00:25.1]} 33.
Raa7 {[%clk 0:01:07.4]} 33... Rd8 {[%clk 0:00:21.8]} 34. Bc7 {[%clk 0:01:05.8]}
34... Rc8 {[%clk 0:00:21.2]} 35. Bd6 {[%clk 0:01:02]} 35... Bxd6 {[%clk
0:00:18]} 36. Rxd7 {[%clk 0:01:01]} 36... Bf8 {[%clk 0:00:16]} 37. Rxh7 {[%clk
0:00:58.6]} 37... Rd8 {[%clk 0:00:15.8]} 38. e3 {[%clk 0:00:57.1]} 38... e5
{[%clk 0:00:15.6]} 39. dxe5 {[%clk 0:00:54.1]} 39... fxe5 {[%clk 0:00:13.6]} 40.
Nxe5 {[%clk 0:00:55]} 40... Rc2 {[%clk 0:00:12.5]} 41. Ng6 {[%clk 0:00:54.4]}
41... Rdd2 {[%clk 0:00:11.2]} 42. Ra8+ {[%clk 0:00:53.3]} 42... Rd8 {[%clk
0:00:08.4]} 43. Rxd8+ {[%clk 0:00:52.3]} 43... Kxd8 {[%clk 0:00:09.3]} 44. Nxf8
{[%clk 0:00:52.8]} 1-0

[Event "Late-Titled-Tuesday-Blitz-March-05-2024"]
[Site "Chess.com"]
[Date "2024.03.05"]
[Round "1"]
[White "miraitrunks"]
[Black "Pelusiansky"]
[Result "0-1"]
[WhiteElo "2170"]
[BlackElo "2567"]
[TimeControl "180+1"]
[EndTime "14:07:12 PST"]
[Termination "Pelusiansky won on time"]

1. e4 {[%clk 0:02:58]} 1... c6 {[%clk 0:02:56.2]} 2. d4 {[%clk 0:02:55.6]} 2...
d5 {[%clk 0:02:56.3]} 3. exd5 {[%clk 0:02:55.9]} 3... cxd5 {[%clk 0:02:56.3]} 4.
Bd3 {[%clk 0:02:56.3]} 4... Nc6 {[%clk 0:02:56]} 5. c3 {[%clk 0:02:56.7]} 5...
Nf6 {[%clk 0:02:55.9]} 6. Bf4 {[%clk 0:02:56.6]} 6... Bg4 {[%clk 0:02:55.9]} 7.
Qb3 {[%clk 0:02:56]} 7... Qd7 {[%clk 0:02:36.3]} 8. h3 {[%clk 0:02:55.1]} 8...
Bh5 {[%clk 0:02:30.3]} 9. Nd2 {[%clk 0:02:54.9]} 9... e6 {[%clk 0:02:27.4]} 10.
Ngf3 {[%clk 0:02:50.8]} 10... Be7 {[%clk 0:02:14.9]} 11. O-O {[%clk 0:02:15.6]}
11... O-O {[%clk 0:02:12.4]} 12. Rfe1 {[%clk 0:02:12.4]} 12... Rac8 {[%clk
0:02:07.3]} 13. Ne5 {[%clk 0:02:10.6]} 13... Nxe5 {[%clk 0:02:05.7]} 14. Bxe5
{[%clk 0:02:06.8]} 14... Bg6 {[%clk 0:02:02.5]} 15. Bxg6 {[%clk 0:02:06]} 15...
hxg6 {[%clk 0:02:03.4]} 16. Re3 {[%clk 0:02:06.2]} 16... Bd6 {[%clk 0:01:58.1]}
17. Bxd6 {[%clk 0:02:05]} 17... Qxd6 {[%clk 0:01:58.1]} 18. Nf3 {[%clk
0:02:05.2]} 18... Ne4 {[%clk 0:01:53.8]} 19. Rae1 {[%clk 0:02:03.2]} 19... b6
{[%clk 0:01:43.1]} 20. Qa4 {[%clk 0:01:57]} 20... Rc7 {[%clk 0:01:40.5]} 21. Ne5
{[%clk 0:01:54]} 21... g5 {[%clk 0:01:29.2]} 22. Qd1 {[%clk 0:01:40.7]} 22... g6
{[%clk 0:01:22.9]} 23. Rxe4 {[%clk 0:01:11.2]} 23... dxe4 {[%clk 0:01:21.6]} 24.
Rxe4 {[%clk 0:01:12.1]} 24... Kg7 {[%clk 0:01:19.6]} 25. Qd3 {[%clk 0:00:51.6]}
25... f6 {[%clk 0:01:09.3]} 26. Nxg6 {[%clk 0:00:51.4]} 26... f5 {[%clk
0:00:47.8]} 27. Re5 {[%clk 0:00:12.3]} 27... Kxg6 {[%clk 0:00:45.7]} 28. Qe3
{[%clk 0:00:12.5]} 28... Rf6 {[%clk 0:00:39]} 29. g4 {[%clk 0:00:13.1]} 29...
Qc6 {[%clk 0:00:29.9]} 30. h4 {[%clk 0:00:10.7]} 30... gxh4 {[%clk 0:00:24.9]}
31. Qh3 {[%clk 0:00:06.8]} 31... Rh7 {[%clk 0:00:20.5]} 32. gxf5+ {[%clk
0:00:04.6]} 32... exf5 {[%clk 0:00:20]} 0-1

[Event "Late-Titled-Tuesday-Blitz-March-05-2024"]
[Site "Chess.com"]
[Date "2024.03.05"]
[Round "1"]
[White "steepedgames"]
[Black "stregachess"]
[Result "1-0"]
[WhiteElo "2540"]
[BlackElo "2016"]
[TimeControl "180+1"]
[EndTime "14:07:12 PST"]
[Termination "steepedgames won on time"]

1. d4 {[%clk 0:02:59.6]} 1... Nf6 {[%clk 0:02:59.6]} 2. Bg5 {[%clk 0:02:57]}
2... e6 {[%clk 0:02:56.1]} 3. Nd2 {[%clk 0:02:55.8]} 3... Be7 {[%clk 0:02:56]}
4. e4 {[%clk 0:02:51.5]} 4... h6 {[%clk 0:02:52.5]} 5. Bh4 {[%clk 0:02:46.1]}
5... d6 {[%clk 0:02:48.4]} 6. Bd3 {[%clk 0:02:44.7]} 6... c5 {[%clk 0:02:43.9]}
7. c3 {[%clk 0:02:41.3]} 7... Nc6 {[%clk 0:02:41.2]} 8. Ne2 {[%clk 0:02:38.1]}
8... O-O {[%clk 0:02:37.9]} 9. O-O {[%clk 0:02:36.5]} 9... a6 {[%clk 0:02:30]}
10. Kh1 {[%clk 0:02:33.1]} 10... b5 {[%clk 0:02:29.7]} 11. f4 {[%clk 0:02:32.1]}
11... Ng4 {[%clk 0:02:22.4]} 12. Bf2 {[%clk 0:02:21]} 12... cxd4 {[%clk
0:02:06.3]} 13. Nxd4 {[%clk 0:02:15.8]} 13... Nxd4 {[%clk 0:02:04.9]} 14. Bxd4
{[%clk 0:02:15.4]} 14... e5 {[%clk 0:02:00.1]} 15. Bg1 {[%clk 0:01:59.3]} 15...
exf4 {[%clk 0:01:55.1]} 16. Rxf4 {[%clk 0:01:52.3]} 16... Ne5 {[%clk 0:01:52.6]}
17. Bf1 {[%clk 0:01:45.5]} 17... Bb7 {[%clk 0:01:50.2]} 18. a4 {[%clk
0:01:16.1]} 18... Bg5 {[%clk 0:01:42.3]} 19. Rf2 {[%clk 0:00:50.5]} 19... Bxd2
{[%clk 0:01:25.4]} 20. Rxd2 {[%clk 0:00:51.4]} 20... Bxe4 {[%clk 0:01:24.7]} 21.
Rxd6 {[%clk 0:00:50.5]} 21... Qg5 {[%clk 0:01:12.8]} 22. Qd4 {[%clk 0:00:43]}
22... Bb7 {[%clk 0:00:54.9]} 23. Be3 {[%clk 0:00:29.1]} 23... Qh5 {[%clk
0:00:46.6]} 24. Kg1 {[%clk 0:00:22.7]} 24... Rae8 {[%clk 0:00:19.8]} 25. Bf4
{[%clk 0:00:21]} 25... Qf5 {[%clk 0:00:12.1]} 26. Bxe5 {[%clk 0:00:18]} 26...
Rxe5 {[%clk 0:00:11.4]} 27. axb5 {[%clk 0:00:16.8]} 27... axb5 {[%clk
0:00:10.5]} 28. Rd1 {[%clk 0:00:12.4]} 28... Qg5 {[%clk 0:00:10]} 29. Qd2 {[%clk
0:00:10.9]} 29... Qg4 {[%clk 0:00:05.1]} 30. Rd4 {[%clk 0:00:10.6]} 30... Re4
{[%clk 0:00:04]} 31. Rxe4 {[%clk 0:00:10.8]} 31... Qxe4 {[%clk 0:00:04.2]} 32.
Qe2 {[%clk 0:00:10.6]} 32... Qf5 {[%clk 0:00:03.5]} 33. Qxb5 {[%clk 0:00:09.9]}
33... Ba8 {[%clk 0:00:02.9]} 34. Qxf5 {[%clk 0:00:10]} 1-0

[Event "Late-Titled-Tuesday-Blitz-March-05-2024"]
[Site "Chess.com"]
[Date "2024.03.05"]
[Round "1"]
[White "elmusmolamas"]
[Black "sergiochess83"]
[Result "0-1"]
[WhiteElo "2496"]
[BlackElo "2863"]
[TimeControl "180+1"]
[EndTime "14:07:13 PST"]
[Termination "sergiochess83 won on time"]

1. e4 {[%clk 0:02:58.5]} 1... e6 {[%clk 0:02:59.6]} 2. d4 {[%clk 0:02:58]} 2...
d5 {[%clk 0:03:00]} 3. exd5 {[%clk 0:02:57.8]} 3... exd5 {[%clk 0:02:54.9]} 4.
Nf3 {[%clk 0:02:57.7]} 4... Bd6 {[%clk 0:02:52.5]} 5. Bd3 {[%clk 0:02:57.6]}
5... Ne7 {[%clk 0:02:52.7]} 6. O-O {[%clk 0:02:54.7]} 6... O-O {[%clk
0:02:52.9]} 7. c3 {[%clk 0:02:54.1]} 7... Bf5 {[%clk 0:02:52.2]} 8. Re1 {[%clk
0:02:51.5]} 8... Nbc6 {[%clk 0:02:46.9]} 9. Bg5 {[%clk 0:02:50.4]} 9... f6
{[%clk 0:02:46.7]} 10. Bh4 {[%clk 0:02:49.9]} 10... Qd7 {[%clk 0:02:37.4]} 11.
Bg3 {[%clk 0:02:49.5]} 11... Rae8 {[%clk 0:02:35.4]} 12. Qc2 {[%clk 0:02:46.7]}
12... Bxd3 {[%clk 0:02:34.5]} 13. Qxd3 {[%clk 0:02:47.6]} 13... Nf5 {[%clk
0:02:22.1]} 14. Nbd2 {[%clk 0:02:44]} 14... a6 {[%clk 0:02:17.3]} 15. Rxe8
{[%clk 0:02:39.6]} 15... Rxe8 {[%clk 0:02:16.9]} 16. Re1 {[%clk 0:02:40.5]}
16... Rxe1+ {[%clk 0:02:14.9]} 17. Nxe1 {[%clk 0:02:41.4]} 17... Nce7 {[%clk
0:01:59]} 18. Bxd6 {[%clk 0:02:39.9]} 18... Nxd6 {[%clk 0:01:56.6]} 19. Qe2
{[%clk 0:02:22.6]} 19... g6 {[%clk 0:01:45.1]} 20. Nd3 {[%clk 0:02:14.9]} 20...
Kf7 {[%clk 0:01:44.1]} 21. Nc5 {[%clk 0:02:13.3]} 21... Qf5 {[%clk 0:01:39.3]}
22. g4 {[%clk 0:01:46.6]} 22... Qc8 {[%clk 0:01:38.7]} 23. f3 {[%clk 0:01:39.8]}
23... a5 {[%clk 0:01:38.5]} 24. Qe3 {[%clk 0:01:20.8]} 24... b6 {[%clk
0:01:36.4]} 25. Nd3 {[%clk 0:01:21.3]} 25... g5 {[%clk 0:01:20.5]} 26. h4 {[%clk
0:01:16.4]} 26... h6 {[%clk 0:01:20]} 27. hxg5 {[%clk 0:01:08.9]} 27... hxg5
{[%clk 0:01:19.7]} 28. Kg2 {[%clk 0:01:09.6]} 28... Ng6 {[%clk 0:01:14.9]} 29.
b3 {[%clk 0:00:41.7]} 29... Qd7 {[%clk 0:00:42.1]} 30. Nf1 {[%clk 0:00:41]}
30... Qb5 {[%clk 0:00:39.3]} 31. Kf2 {[%clk 0:00:34.4]} 31... a4 {[%clk
0:00:37.5]} 32. Nd2 {[%clk 0:00:25.2]} 32... axb3 {[%clk 0:00:37.3]} 33. axb3
{[%clk 0:00:26.1]} 33... Qa5 {[%clk 0:00:37.8]} 34. Nb4 {[%clk 0:00:23.6]} 34...
Nf4 {[%clk 0:00:34.9]} 35. Nc6 {[%clk 0:00:13.6]} 35... Qa2 {[%clk 0:00:20.9]}
36. Qe7+ {[%clk 0:00:13.8]} 36... Kg6 {[%clk 0:00:20.6]} 37. Ke3 {[%clk
0:00:14.6]} 37... Qa1 {[%clk 0:00:20.3]} 0-1